bitfinex-derivatives/quotes_SOLF0:USTF0_20250714
["timestamp","ask_amount","ask_price","bid_price","bid_amount"]
[1752461899053,9.6558,164.8,164.79,3.56]
[1752461899258,3.59,164.8,164.77,3.56]
[1752461899860,3.59,164.82,164.76,8.98018273]
[1752461900159,3.59,164.82,164.78,3.56]
[1752461900565,6.0661,164.8,164.78,3.56]
[1752461900858,6.0661,164.8,164.76,8.98018273]
[1752461900859,3.59,164.82,164.76,3.56]
[1752461901553,3.59,164.82,164.77,3.56]
[1752461901756,6.0655,164.81,164.77,3.56]
[1752461901968,9.6555,164.81,164.77,3.56]
[1752461902167,3.59,164.81,164.77,3.56]
[1752461903169,9.6555,164.81,164.78,3.56]
[1752461903369,3.59,164.81,164.78,3.56]
[1752461903673,3.59,164.8,164.79,3.56]
[1752461904770,9.6558,164.8,164.79,3.56]
[1752461905071,9.6558,164.8,164.79,9.68381032]
[1752461905371,2.91288273,164.85,164.8,3.56]
[1752461905569,3.59,164.83,164.82,3.56]
[1752461905771,3.59,164.83,164.82,9.68381032]
[1752461905973,3.59,164.84,164.83,3.56]
[1752461906165,3.59,164.84,164.83,9.68381032]
[1752461906365,9.6546,164.84,164.83,9.68381032]
[1752461907569,3.59,164.84,164.83,9.68381032]
[1752461907973,3.59,164.84,164.83,6.12381032]
[1752461908175,9.6544,164.84,164.83,6.12381032]
[1752461912280,6.0655,164.81,164.77,6.0668]
[1752461912471,9.6855,164.81,164.8,3.53]
[1752461912679,9.6855,164.81,164.8,9.65807671]
[1752461913072,6.0655,164.81,164.8,9.65807671]
[1752461913470,9.6855,164.81,164.8,9.65807671]
[1752461916076,9.6855,164.81,164.8,3.53]
[1752461916379,9.6855,164.81,164.78,3.53]
[1752461916578,3.62,164.8,164.79,3.53]
[1752461916878,6.0655,164.81,164.79,3.53]
[1752461917080,9.6855,164.81,164.8,3.53]
[1752461919479,3.62,164.81,164.8,9.67078683]
[1752461919680,3.62,164.84,164.81,3.53]
[1752461919879,3.62,164.84,164.83,3.53]
[1752461920079,3.62,164.84,164.83,9.67078683]
[1752461920378,3.62,164.85,164.84,3.53]
[1752461920579,3.62,164.85,164.84,9.67078683]
[1752461920981,3.62,164.85,164.84,6.14078683]
[1752461921374,9.684,164.85,164.84,6.14078683]
[1752461922182,182.11288273,164.88,164.82,3.53]
[1752461922379,3.62,164.87,164.83,6.14160143]
[1752461922575,3.62,164.87,164.84,6.14160143]
[1752461922882,9.6836,164.86,164.85,6.14160143]
[1752461923179,12.59648273,164.86,164.85,6.14160143]
[1752461923574,6.0658,164.81,164.79,3.53]
[1752461923778,9.6858,164.81,164.78,6.0665]
[1752461923980,9.6858,164.81,164.79,3.53]
[1752461924282,3.62,164.81,164.79,9.5959]
[1752461924579,6.0642,164.85,164.81,3.53]
[1752461924775,3.62,164.85,164.81,3.53]
[1752461924981,3.62,164.85,164.81,6.0653]
[1752461925179,3.62,164.85,164.82,3.53]
[1752461925579,9.6842,164.85,164.82,3.53]
[1752461925976,3.62,164.85,164.82,3.53]
[1752461926176,9.6842,164.85,164.82,3.53]
[1752461926381,6.0642,164.85,164.81,6.0653]
[1752461926579,2.91288273,164.86,164.83,3.53]
[1752461927180,3.62,164.85,164.83,3.53]
[1752461927778,3.62,164.84,164.83,3.53]
[1752461928176,9.6844,164.84,164.83,3.53]
[1752461928377,3.62,164.86,164.85,3.53]
[1752461928680,9.6836,164.86,164.85,3.53]
[1752461930583,3.62,164.87,164.86,3.53]
[1752461931282,9.6833,164.87,164.86,3.53]
[1752461934183,6.0641,164.85,164.82,8.97788273]
[1752461934385,3.62,164.86,164.82,8.97788273]
[1752461934574,3.62,164.86,164.85,3.53]
[1752461935083,9.6838,164.86,164.85,3.53]
[1752461938282,6.0645,164.84,164.78,5.00267553]
[1752461938487,6.0645,164.84,164.79,3.53]
[1752461938488,3.62,164.84,164.79,3.53]
[1752461938984,2.91288273,164.85,164.79,3.53]
[1752461938985,9.6853,164.82,164.79,3.53]
[1752461940383,6.0658,164.8,164.79,3.53]
[1752461940683,3.42,164.82,164.79,3.53]
[1752461940889,3.42,164.84,164.8,3.43]
[1752461941090,6.0648,164.83,164.8,3.43]
[1752461941488,3.42,164.82,164.77,2.91288273]
[1752461941690,3.42,164.81,164.8,3.43]
[1752461942483,3.42,164.84,164.8,3.43]
[1752461942987,6.0647,164.83,164.8,3.43]
[1752461943586,178.82,164.86,164.81,3.43]
[1752461943781,3.42,164.85,164.81,3.43]
[1752461944891,9.4842,164.85,164.81,6.0654]
[1752461945189,3.42,164.84,164.83,3.43]
[1752461945787,9.4845,164.84,164.83,3.43]
[1752461946188,3.42,164.84,164.83,3.43]
[1752461946792,9.4844,164.84,164.83,9.51861239]
[1752461947689,9.4844,164.84,164.83,3.43]
[1752461949487,3.42,164.84,164.81,6.0655]
[1752461949694,3.42,164.86,164.79,2.91288273]
[1752461950093,3.42,164.86,164.8,3.43]
[1752461950893,6.0644,164.84,164.8,9.4956]
[1752461951083,6.0644,164.84,164.81,3.43]
[1752461952793,6.0644,164.84,164.81,6.34288273]
[1752461953695,9.4844,164.84,164.81,2.91288273]
[1752461953893,9.4849,164.83,164.81,2.91288273]
[1752461954289,9.4849,164.83,164.82,3.43]
[1752461954995,9.4849,164.83,164.81,3.43]
[1752461955197,3.42,164.82,164.81,3.43]
[1752461955589,6.0649,164.83,164.81,3.43]
[1752461955798,9.4849,164.83,164.81,3.43]
[1752461956897,9.4849,164.83,164.8,2.91288273]
[1752461957099,9.4849,164.83,164.82,3.43]
[1752461957297,9.4849,164.83,164.79,8.97888273]
[1752461957498,3.42,164.82,164.8,3.43]
[1752461958000,3.42,164.85,164.8,3.43]
[1752461958199,9.4849,164.83,164.8,3.43]
[1752461958497,6.0649,164.83,164.8,3.43]
[1752461958700,6.0645,164.84,164.8,9.4958]
[1752461958898,6.0645,164.84,164.81,3.43]
[1752461959099,9.4845,164.84,164.81,3.43]
[1752461959494,6.064,164.85,164.81,6.0654]
[1752461959699,3.42,164.85,164.82,3.43]
[1752461959901,3.42,164.87,164.82,3.43]
[1752461960100,6.0644,164.84,164.82,3.43]
[1752461960293,9.4844,164.84,164.82,3.43]
[1752461960896,6.0641,164.85,164.82,3.43]
[1752461961196,9.4841,164.85,164.82,3.43]
[1752461964105,9.4844,164.84,164.82,3.43]
[1752461967600,3.42,164.87,164.8,2.91288273]
[1752461967805,3.42,164.87,164.83,3.43]
[1752461968905,3.42,164.87,164.84,3.43]
[1752461970106,6.064,164.85,164.84,3.43]
[1752461970308,9.654,164.85,164.84,3.43]
[1752461970802,6.0644,164.84,164.81,3.57]
[1752461971001,3.59,164.83,164.81,3.57]
[1752461972010,3.59,164.84,164.81,3.57]
[1752461972204,3.59,164.83,164.81,3.57]
[1752461972404,2.91288273,164.86,164.82,3.57]
[1752461972605,2.91288273,164.86,164.83,3.57]
[1752461972808,6.0647,164.84,164.83,3.57]
[1752461973109,9.6547,164.84,164.83,3.57]
[1752461973902,3.59,164.86,164.78,6.48288273]
[1752461974108,3.59,164.86,164.78,3.57]
[1752461974409,6.065,164.83,164.8,3.57]
[1752461974603,3.59,164.82,164.8,3.57]
[1752461975208,9.655,164.83,164.8,3.57]
[1752461975508,3.59,164.82,164.8,3.57]
[1752461976311,9.6551,164.82,164.8,3.57]
[1752461976911,3.59,164.82,164.8,3.57]
[1752461977909,6.0648,164.83,164.8,3.57]
[1752461978105,9.6548,164.83,164.8,3.57]
[1752461978604,6.0648,164.83,164.8,3.57]
[1752461978810,3.59,164.82,164.8,3.57]
[1752461979709,6.0648,164.83,164.8,3.57]
[1752461980010,9.6548,164.83,164.8,3.57]
[1752461980313,5.10496817,164.82,164.81,6.1438473]
[1752461980510,5.10496817,164.82,164.81,9.7138473]
[1752461980716,8.02326066,164.87,164.83,3.57]
[1752461981013,8.02326066,164.87,164.84,6.1438473]
[1752461981210,8.02326066,164.87,164.85,6.1438473]
[1752461981413,11.17367793,164.87,164.86,6.1438473]
[1752461981612,6.0633,164.87,164.86,6.1438473]
[1752461982411,8.1033,164.87,164.86,6.1438473]
[1752461986610,186.5433,164.87,164.86,6.1438473]
[1752461987014,188.40859826,164.87,164.86,6.1438473]
[1752461987612,8.104,164.85,164.84,3.57]
[1752461987814,8.104,164.85,164.84,9.64591588]
[1752461988317,6.064,164.85,164.84,9.64591588]
[1752461988714,9.96909826,164.86,164.85,3.57]
[1752461988914,8.1038,164.86,164.85,9.64591588]
[1752461989116,6.0638,164.86,164.85,9.64591588]
[1752461989710,184.5034,164.87,164.85,9.64591588]
[1752461990010,184.5034,164.87,164.86,9.64591588]
[1752461990209,223.239794,164.89,164.86,9.64591588]
[1752461990210,5.11037793,164.89,164.86,7.94121414]
[1752461990416,180.44,164.9,164.88,3.57]
[1752461990611,178.4,164.9,164.89,9.64591588]
[1752461990815,184.4622,164.9,164.89,9.64591588]
[1752461991414,8.1019,164.91,164.89,9.64591588]
[1752461991616,6.0619,164.91,164.9,9.64591588]
[1752461993420,6.0619,164.91,164.9,9.63069519]
[1752461995617,6.0619,164.91,164.9,3.57]
[1752461995812,6.0611,164.93,164.9,2.91234189]
[1752461996015,178.34,164.94,164.91,3.57]
[1752461996212,180.38,164.94,164.91,3.57]
[1752461996516,2.04,164.92,164.9,3.57]
[1752461996816,6.0614,164.92,164.91,3.57]
[1752461997021,8.1014,164.92,164.91,3.57]
[1752461997215,6.0614,164.92,164.91,3.57]
[1752461998625,178.32,164.96,164.91,6.48234189]
[1752461998918,6.0605,164.95,164.92,3.57]
[1752461999124,6.0605,164.95,164.93,2.91234189]
[1752461999322,178.3,164.98,164.94,3.57]
[1752461999527,2.04,164.97,164.94,3.57]
[1752461999723,6.06,164.96,164.94,3.57]
[1752461999925,2.04,164.97,164.94,3.57]
[1752462000226,6.0603,164.95,164.94,3.57]
[1752462000419,2.04,164.95,164.93,3.45]
[1752462000620,6.061,164.94,164.93,3.45]
[1752462001324,6.0607,164.95,164.93,3.45]
[1752462001624,6.0607,164.95,164.94,6.01477537]
[1752462001818,8.1007,164.95,164.94,9.46477537]
[1752462002621,8.1007,164.95,164.94,6.01477537]
[1752462002828,11.01304189,164.95,164.94,6.01477537]
[1752462003030,8.1011,164.93,164.92,3.45]
[1752462004533,6.0611,164.93,164.92,3.45]
[1752462005333,2.91234189,165.0,164.92,2.91234189]
[1752462005626,2.04,164.98,164.95,3.45]
[1752462005827,2.04,165.02,164.97,3.45]
[1752462006031,180.26,165.02,164.97,3.45]
[1752462006429,6.0588,165.0,164.97,3.45]
[1752462006630,180.26,165.02,164.97,3.45]
[1752462006825,2.04,165.01,164.97,3.45]
[1752462007329,6.0586,165.0,164.97,3.45]
[1752462007528,6.0586,165.0,164.98,2.91234189]
[1752462007733,6.0586,165.0,164.99,3.45]
[1752462009431,2.04,165.01,164.89,3.45]
[1752462009731,2.04,164.93,164.86,3.45]
[1752462009935,6.0632,164.88,164.86,3.45]
[1752462010127,178.16,164.93,164.88,3.45]
[1752462010622,6.0621,164.91,164.88,3.45]
[1752462011422,178.16,164.93,164.89,2.91234189]
[1752462011635,2.04,164.95,164.9,3.45]
[1752462011933,6.0618,164.91,164.9,3.45]
[1752462015037,2.04,164.95,164.9,3.45]
[1752462015232,2.04,164.97,164.91,2.91234189]
[1752462015432,2.04,164.97,164.92,3.45]
[1752462016129,6.0606,164.95,164.92,3.45]
[1752462019937,6.0608,164.94,164.92,3.45]
[1752462020741,6.0604,164.95,164.92,3.45]
[1752462021238,6.0607,164.94,164.92,3.45]
[1752462022335,6.0611,164.93,164.92,3.45]
[1752462022540,2.04,164.92,164.85,3.45]
[1752462022740,2.04,164.92,164.87,3.45]
[1752462023241,6.0633,164.87,164.8,7.92956207]
[1752462023446,2.04,164.89,164.83,2.91234189]
[1752462023944,2.04,164.89,164.84,3.45]
[1752462024133,4.95234189,164.91,164.85,2.91234189]
[1752462024442,2.04,164.9,164.81,3.45]
[1752462024740,2.04,164.9,164.84,3.45]
[1752462025142,2.91234189,164.91,164.85,3.45]
[1752462025342,4.95234189,164.91,164.85,3.45]
[1752462025646,6.0628,164.89,164.85,3.45]
[1752462025847,2.04,164.94,164.88,2.91234189]
[1752462026045,2.04,164.94,164.89,3.45]
[1752462026835,2.04,164.94,164.88,2.91234189]
[1752462027035,2.91234189,164.93,164.89,3.45]
[1752462027238,2.04,164.92,164.89,3.45]
[1752462027547,2.04,164.92,164.88,3.45]
[1752462027740,2.04,164.9,164.85,3.45]
[1752462027941,2.04,164.88,164.79,5.01722018]
[1752462028144,2.04,164.88,164.84,3.45]
[1752462028341,2.04,164.87,164.84,3.45]
[1752462028646,2.04,164.89,164.84,3.45]
[1752462029149,6.0632,164.88,164.84,3.45]
[1752462030945,6.0632,164.88,164.85,3.53]
[1752462032242,6.0633,164.87,164.85,3.53]
[1752462033249,6.0633,164.87,164.84,2.91234189]
[1752462033453,6.0633,164.87,164.86,3.53]
[1752462033945,8.1037,164.86,164.85,3.53]
[1752462035950,6.0637,164.86,164.85,3.53]
[1752462039047,8.1037,164.86,164.83,3.53]
[1752462039351,2.04,164.86,164.83,3.53]
[1752462039541,2.04,164.87,164.82,3.53]
[1752462039740,2.04,164.86,164.82,3.53]
[1752462039940,2.04,164.85,164.83,3.53]
[1752462040654,23.32037793,164.93,164.83,3.53]
[1752462040655,8.1046,164.84,164.83,3.53]
[1752462040847,8.1046,164.84,164.83,9.67444378]
[1752462041354,6.0646,164.84,164.83,9.67444378]
[1752462041548,2.04,164.86,164.83,6.14444378]
[1752462041751,2.04,164.9,164.85,3.53]
[1752462042048,2.03,164.94,164.88,2.91234189]
[1752462042251,2.03,164.94,164.91,3.53]
[1752462042446,2.03,164.94,164.93,3.53]
[1752462042642,8.0907,164.94,164.93,9.67444378]
[1752462042843,2.03,164.96,164.94,3.53]
[1752462043052,2.91234189,164.96,164.95,6.14444378]
[1752462043252,4.94234189,164.96,164.95,6.14444378]
[1752462043555,11.00224189,164.96,164.95,6.14444378]
[1752462045151,8.101,164.93,164.92,3.53]
[1752462045653,6.061,164.93,164.92,3.53]
[1752462047456,2.91234189,164.99,164.93,3.53]
[1752462047756,6.0613,164.93,164.91,3.53]
[1752462047952,2.04,164.94,164.92,3.53]
[1752462048254,2.04,164.94,164.93,3.53]
[1752462049044,6.0614,164.93,164.88,8.97494189]
[1752462049253,8.1014,164.93,164.89,3.53]
[1752462049747,6.0614,164.93,164.89,3.53]
[1752462050150,6.0608,164.94,164.89,6.0624]
[1752462050347,6.0608,164.94,164.9,3.53]
[1752462050755,6.0608,164.94,164.9,6.44234189]
[1752462051151,6.0611,164.93,164.9,3.53]
[1752462051662,6.0609,164.94,164.9,3.53]
[1752462053259,6.0611,164.93,164.9,3.53]
[1752462053958,6.0607,164.94,164.9,3.53]
[1752462054159,2.04,164.94,164.88,3.53]
[1752462054652,2.91234189,164.95,164.88,3.53]
[1752462054859,2.04,164.94,164.88,3.53]
[1752462055260,8.1018,164.92,164.88,3.53]
[1752462055557,2.04,164.92,164.88,3.53]
[1752462055962,6.062,164.91,164.88,3.53]
[1752462056661,6.0615,164.92,164.88,3.53]
[1752462057156,6.0615,164.92,164.89,6.05049674]
[1752462057361,6.0615,164.92,164.9,6.05049674]
[1752462057562,6.0615,164.92,164.91,9.58049674]
[1752462057763,2.04,164.96,164.92,3.53]
[1752462057966,2.04,164.96,164.93,6.05049674]
[1752462058160,6.0618,164.91,164.9,3.53]
[1752462058763,6.0614,164.92,164.91,3.53]
[1752462059257,2.04,164.91,164.88,3.53]
[1752462059459,2.04,164.91,164.89,3.53]
[1752462059761,2.04,164.91,164.9,3.53]
[1752462060660,6.0621,164.91,164.9,3.53]
[1752462060856,2.03,164.93,164.9,3.53]
[1752462061057,2.03,164.93,164.88,3.29]
[1752462061257,2.03,164.92,164.88,3.29]
[1752462061665,2.03,164.94,164.88,3.29]
[1752462062261,6.062,164.91,164.88,3.29]
[1752462062467,2.03,164.92,164.88,3.29]
[1752462062666,2.91234189,164.95,164.88,3.29]
[1752462062867,6.0615,164.92,164.88,3.29]
[1752462063068,2.03,164.92,164.85,2.91234189]
[1752462063268,2.03,164.92,164.86,3.29]
[1752462063669,6.0624,164.9,164.86,3.29]
[1752462064170,2.91234189,164.9,164.83,4.9807663]
[1752462064470,2.03,164.89,164.86,3.29]
[1752462064663,5.07716955,164.94,164.86,3.29]
[1752462064969,2.91234189,164.93,164.87,3.29]
[1752462065167,2.03,164.91,164.87,3.29]
[1752462065361,2.03,164.9,164.88,3.29]
[1752462065561,2.03,164.89,164.88,3.29]
[1752462065965,6.0632,164.88,164.86,3.29]
[1752462066271,6.0632,164.88,164.85,3.29]
[1752462066472,2.03,164.9,164.85,3.29]
[1752462066672,2.91234189,164.91,164.85,3.29]
[1752462066876,6.0631,164.88,164.85,3.29]
[1752462067579,6.0636,164.86,164.85,3.29]
[1752462067770,8.0936,164.86,164.85,3.29]
[1752462068174,6.0645,164.84,164.83,3.29]
[1752462069467,6.0648,164.83,164.8,3.29]
[1752462069674,2.03,164.84,164.81,3.29]
[1752462069975,8.0951,164.82,164.81,3.29]
[1752462071969,6.066,164.8,164.79,3.29]
[1752462072278,8.096,164.8,164.79,3.29]
[1752462072878,8.096,164.8,164.75,3.29]
[1752462072879,4.94234189,164.8,164.75,3.29]
[1752462073075,2.91234189,164.8,164.75,3.29]
[1752462073279,6.0672,164.77,164.75,3.29]
[1752462073477,2.03,164.79,164.73,3.29]
[1752462073778,6.067,164.77,164.73,3.29]
[1752462074589,6.067,164.77,164.73,9.3584]
[1752462074791,6.067,164.77,164.74,3.29]
[1752462075292,2.03,164.79,164.74,3.29]
[1752462075788,2.03,164.82,164.76,3.29]
[1752462076982,2.03,164.82,164.75,8.97984189]
[1752462076983,2.03,164.84,164.77,2.91234189]
[1752462077187,2.03,164.84,164.72,2.91234189]
[1752462077188,2.91234189,164.83,164.78,3.29]
[1752462077490,6.0661,164.8,164.79,3.29]
[1752462077793,4.94234189,164.83,164.76,3.29]
[1752462077989,4.94234189,164.83,164.76,9.357]
[1752462078190,2.03,164.82,164.77,3.29]
[1752462078385,2.03,164.82,164.76,3.29]
[1752462078986,2.03,164.78,164.75,3.29]
[1752462079389,2.03,164.8,164.75,3.29]
[1752462080388,2.03,164.84,164.76,2.91234189]
[1752462080596,2.03,164.84,164.77,3.29]
[1752462080888,6.0661,164.8,164.77,3.29]
[1752462081092,2.03,164.82,164.77,3.29]
[1752462081495,8.096,164.8,164.77,3.29]
[1752462082602,2.03,164.82,164.77,3.29]
[1752462083102,8.0953,164.82,164.77,9.3569]
[1752462083502,6.0653,164.82,164.78,3.29]
[1752462084098,6.0649,164.83,164.79,3.29]
[1752462084304,8.0949,164.83,164.79,3.29]
[1752462084497,2.03,164.83,164.79,3.29]
[1752462084693,6.0653,164.82,164.78,2.91234189]
[1752462084897,2.03,164.82,164.79,3.29]
[1752462085398,2.03,164.82,164.8,3.29]
[1752462086004,2.03,164.82,164.78,6.0664]
[1752462086197,2.03,164.82,164.81,3.29]
[1752462086705,8.0953,164.82,164.81,3.29]
[1752462086898,2.03,164.82,164.78,3.29]
[1752462088100,6.0655,164.81,164.78,3.29]
[1752462088601,2.03,164.82,164.78,3.29]
[1752462088602,6.0662,164.79,164.78,3.29]
[1752462088906,8.0962,164.79,164.78,3.29]
[1752462089107,6.0659,164.8,164.78,3.29]
[1752462089308,8.0959,164.8,164.79,3.29]
[1752462091303,2.04,164.83,164.79,6.20234189]
[1752462091503,2.04,164.85,164.8,3.41]
[1752462091698,2.04,164.85,164.81,3.41]
[1752462092002,2.04,164.85,164.82,3.41]
[1752462092403,8.1047,164.83,164.82,3.41]
[1752462093709,6.0654,164.82,164.8,3.41]
[1752462094006,6.0654,164.82,164.81,3.41]
[1752462094505,8.1054,164.82,164.81,3.41]
[1752462094908,8.1054,164.82,164.81,9.41436133]
[1752462095607,8.1054,164.82,164.81,6.00436133]
[1752462096002,2.91234189,164.82,164.69,4.9807663]
[1752462096199,2.04,164.81,164.75,3.41]
[1752462096399,6.0664,164.79,164.75,3.41]
[1752462097312,2.04,164.81,164.76,2.91234189]
[1752462097506,2.04,164.83,164.78,2.91234189]
[1752462097702,2.04,164.83,164.79,3.41]
[1752462097908,6.0665,164.79,164.78,3.41]
[1752462100612,8.1065,164.79,164.78,3.41]
[1752462101407,6.0677,164.75,164.72,2.91234189]
[1752462101709,6.0677,164.75,164.73,3.41]
[1752462102105,6.0674,164.76,164.73,3.41]
[1752462102311,2.04,164.78,164.73,3.41]
[1752462102808,2.91234189,164.8,164.74,3.41]
[1752462103009,2.04,164.78,164.74,3.41]
[1752462103414,6.0677,164.76,164.74,3.41]
[1752462103612,2.04,164.78,164.74,3.41]
[1752462104110,6.0677,164.75,164.74,3.41]
[1752462104608,8.1077,164.75,164.74,3.41]
[1752462106214,6.0677,164.75,164.74,3.41]
[1752462107318,8.1077,164.75,164.74,3.41]
[1752462108115,2.04,164.74,164.73,3.41]
[1752462108709,6.0683,164.74,164.7,2.91234189]
[1752462109311,6.0683,164.74,164.71,3.41]
[1752462110412,524.28,164.82,164.72,2.91234189]
[1752462110614,2.04,164.82,164.77,3.41]
[1752462110815,6.0658,164.8,164.79,3.41]
[1752462112713,6.0656,164.81,164.79,3.41]
[1752462113320,2.04,164.87,164.8,3.41]
[1752462113519,2.04,164.86,164.82,2.91234189]
[1752462113917,6.0636,164.86,164.85,3.41]
[1752462115317,6.0633,164.87,164.85,3.41]
[1752462115519,526.32,164.9,164.85,3.41]
[1752462115717,524.28,164.9,164.85,3.41]
[1752462116116,2.04,164.92,164.85,3.41]
[1752462116316,2.04,164.92,164.86,3.41]
[1752462117415,6.0631,164.88,164.86,3.41]
[1752462117720,2.04,164.91,164.86,3.41]
[1752462118108,2.91234189,164.93,164.86,6.32234189]
[1752462118310,4.95234189,164.93,164.87,3.41]
[1752462119416,6.0624,164.9,164.87,3.41]
[1752462119721,4.95234189,164.93,164.87,3.41]
[1752462119925,6.0627,164.89,164.87,3.41]
[1752462120121,2.04,164.93,164.87,3.41]
[1752462120421,2.04,164.95,164.89,3.4]
[1752462121223,2.91234189,164.94,164.89,3.4]
[1752462121425,2.02,164.94,164.89,3.4]
[1752462121925,6.0621,164.9,164.89,3.4]
[1752462122126,2.02,164.93,164.89,3.4]
[1752462122320,2.91234189,164.95,164.89,3.4]
[1752462122523,2.02,164.93,164.89,3.4]
[1752462123021,4.93234189,164.95,164.89,3.4]
[1752462123320,2.02,164.97,164.92,2.91234189]
[1752462123524,2.02,164.97,164.93,3.4]
[1752462123825,524.2,164.98,164.93,3.4]
[1752462124727,2.02,164.99,164.93,3.4]
[1752462126026,6.0606,164.95,164.93,3.4]
[1752462126429,2.02,164.99,164.94,2.91234189]
[1752462126625,182.43234189,165.01,164.95,3.4]
[1752462126923,2.02,165.01,164.97,3.4]
[1752462127130,6.0593,164.98,164.97,3.4]
[1752462131327,2.02,165.03,164.97,3.4]
[1752462132030,2.02,165.03,164.99,3.4]
[1752462133127,6.0585,165.0,164.99,3.4]
[1752462133329,6.0585,165.0,164.99,9.44770869]
[1752462135229,6.0583,165.01,165.0,3.4]
[1752462135427,177.46,165.05,165.01,3.4]
[1752462135634,526.06,165.06,165.03,3.4]
[1752462135829,6.0566,165.05,165.04,6.04770869]
[1752462136323,6.0566,165.05,165.04,9.44770869]
[1752462137132,8.0766,165.05,165.04,9.44770869]
[1752462138325,8.0766,165.05,165.04,6.04770869]
[1752462138528,2.02,165.05,164.99,2.91234189]
[1752462138830,2.91234189,165.05,165.0,5.95761822]
[1752462139032,2.02,165.04,165.03,3.4]
[1752462139232,6.057,165.04,165.03,9.35761822]
[1752462139929,6.057,165.04,165.03,3.4]
[1752462140130,6.057,165.04,165.03,9.35416285]
[1752462140531,6.0577,165.02,165.01,3.4]
[1752462140731,6.0577,165.02,165.01,9.35252473]
[1752462141325,15.02104189,165.12,165.01,9.35252473]
[1752462141526,4.93234189,165.08,165.03,3.4]
[1752462141730,2.02,165.07,165.03,3.4]
[1752462142329,2.91234189,165.08,165.03,3.4]
[1752462142632,6.0577,165.03,165.01,3.4]
[1752462142829,6.0577,165.03,165.02,9.34789636]
[1752462144428,6.0571,165.04,165.02,3.4]
[1752462144636,179.32,165.06,165.04,3.4]
[1752462144838,2.02,165.06,165.04,3.4]
[1752462145040,2.02,165.05,165.04,3.4]
[1752462145434,182.23234189,165.07,165.04,9.34509217]
[1752462145640,2.02,165.06,165.04,3.4]
[1752462146240,8.0766,165.05,165.04,3.4]
[1752462146436,8.0766,165.05,165.04,9.3459613]
[1752462146839,8.0766,165.05,165.04,5.9459613]
[1752462147036,6.0574,165.03,165.02,3.4]
[1752462147342,6.0574,165.03,165.02,9.34652161]
[1752462148636,6.0574,165.03,165.02,3.4]
[1752462148843,6.0574,165.03,165.02,9.35095316]
[1752462150543,8.0974,165.03,165.02,5.95095316]
[1752462150842,6.0571,165.04,165.03,3.3]
[1752462151044,6.0571,165.04,165.03,9.25095316]
[1752462151837,6.0571,165.04,165.03,9.26111688]
[1752462154542,6.0568,165.05,165.04,3.3]
[1752462154740,6.0568,165.05,165.04,9.27751487]